fUST/lending_fUST_20251114
["ID","MTS","AMOUNT","RATE_DAILY","PERIOD"]
[393899704,1763083526358,290.39862941,0.00039593,30]
[393899705,1763083545273,-179.56821827,0.0002589,2]
[393899707,1763083548086,-36.43178173,0.0002589,2]
[393899709,1763083580102,200.0,0.00039593,30]
[393899727,1763083712692,1025.2,0.00026,2]
[393899743,1763083719201,8974.81,0.00024142,2]
[393899744,1763083719223,10000.01,0.00024142,2]
[393899745,1763083719246,10000.01,0.00024142,2]
[393899746,1763083719268,9659.70895564,0.00024142,2]
[393899747,1763083720948,340.30104436,0.00014,2]
[393899748,1763083720970,9238.34579569,0.00014,2]
[393899749,1763083740252,-150.0,0.00028945,2]
[393899797,1763083810850,154.19326815,0.00039593,20]
[393899798,1763083811384,151.0,0.00039593,30]
[393899799,1763083811669,353.58825321,0.00039593,30]
[393899800,1763083812013,156.587,0.00039593,30]
[393899801,1763083812747,162.380719,0.00039593,30]
[393899802,1763083813267,168.3888056,0.00039593,30]
[393899803,1763083813902,174.61919141,0.00039593,30]
[393899804,1763083814521,181.08010149,0.00039593,30]
[393899805,1763083815118,187.78006525,0.00039593,30]
[393899807,1763083815749,194.72792766,0.00039593,30]
[393899808,1763083816394,201.93286099,0.00039593,30]
[393899809,1763083817090,209.40437684,0.00039593,30]
[393899811,1763083817666,217.15233878,0.00039593,30]
[393899812,1763083818306,225.18697532,0.00039593,30]
[393899813,1763083819012,233.51889341,0.00039593,30]
[393899814,1763083819223,178.33046549,0.00027589,2]
[393899815,1763083819644,242.15909246,0.00039593,30]
[393899816,1763083820291,251.11897888,0.00039593,30]
[393899817,1763083820937,260.4103811,0.00039593,30]
[393899818,1763083821705,270.0455652,0.00039593,30]
[393899819,1763083822206,280.03725112,0.00039593,30]
[393899820,1763083822856,290.39862941,0.00039593,30]
[393899821,1763083823470,290.39862941,0.00039593,30]
[393899837,1763083832651,-150.0,0.0002899,2]
[393899838,1763083832660,-500.0,0.00029867,2]
[393899839,1763083832670,-48.75772006,0.00029898,2]
[393899840,1763083832764,-251.24227994,0.00029898,2]
[393899841,1763083832773,-940.0,0.00029898,2]
[393899842,1763083832782,-3607.1541092,0.00029899,2]
[393899843,1763083832793,-4582.27114425,0.000299,2]
[393899844,1763083832803,-500.0,0.00029973,5]
[393899845,1763083832812,-863.36,0.0002999,3]
[393899846,1763083832821,-663.6,0.0002999,3]
[393899847,1763083832830,-331.8,0.0002999,3]
[393899848,1763083832842,-165.9,0.0002999,3]
[393899849,1763083832851,-497.72,0.0002999,3]
[393899850,1763083832861,-3710.75,0.0002999,10]
[393899851,1763083832873,-3092.29,0.0002999,10]
[393899852,1763083832883,-2598.19,0.0002999,10]
[393899853,1763083832892,-2165.16,0.0002999,10]
[393899854,1763083832901,-943.85233854,0.0002999,2]
[393899855,1763083832910,-500.0,0.00029998,2]
[393899856,1763083832919,-500.0,0.00029998,2]
[393899857,1763083832928,-500.0,0.00029998,2]
[393899858,1763083832938,-250.821175,0.00029998,2]
[393899859,1763083832947,-500.0,0.00029998,2]
[393899860,1763083832956,-109.90558679,0.00029998,2]
[393899861,1763083832968,-346.279943,0.00029998,2]
[393899867,1763083838609,-3141.72951443,0.00029898,2]
[393899868,1763083838619,-1804.3,0.0002999,10]
[393899869,1763083838629,-43.81447021,0.00029998,2]
[393899870,1763083838639,-508.35601448,0.00029998,2]
[393899871,1763083838651,-43.41320164,0.00029998,2]
[393899872,1763083838666,-500.0,0.00029998,2]
[393899873,1763083838677,-500.0,0.00029998,2]
[393899874,1763083838687,-500.0,0.00029998,2]
[393899875,1763083838696,-379.0635487,0.00029998,2]
[393899876,1763083838708,-120.9364513,0.00029998,2]
[393899877,1763083838718,-504.56317708,0.00029998,2]
[393899878,1763083838727,-500.0,0.00029998,2]
[393899879,1763083838737,-500.0,0.00029998,2]
[393899880,1763083838746,-500.0,0.00029998,2]
[393899881,1763083838756,-500.0,0.00029998,2]
[393899882,1763083838765,-500.0,0.00029998,2]
[393899883,1763083838775,-500.0,0.00029998,2]
[393899884,1763083838784,-500.0,0.00029998,2]
[393899885,1763083838796,-467.1326684,0.00029998,2]
[393899886,1763083838807,-500.0,0.00029998,2]
[393899887,1763083838816,-500.0,0.00029998,2]
[393899888,1763083838826,-500.0,0.00029998,2]
[393899889,1763083838837,-500.0,0.00029998,2]
[393899890,1763083838846,-500.0,0.00029998,2]
[393899891,1763083838855,-407.96763114,0.00029998,2]
[393899892,1763083838865,-500.0,0.00029998,2]
[393899893,1763083838875,-500.0,0.00029998,2]
[393899894,1763083838885,-500.0,0.00029998,2]
[393899895,1763083838894,-500.0,0.00029998,2]
[393899896,1763083838904,-500.0,0.00029998,2]
[393899897,1763083838913,-500.0,0.00029998,2]
[393899898,1763083838923,-500.0,0.00029998,2]
[393899899,1763083838933,-500.0,0.00029998,2]
[393899900,1763083838943,-500.0,0.00029998,2]
[393899901,1763083838952,-500.0,0.00029998,2]
[393899902,1763083838962,-500.0,0.00029998,2]
[393899903,1763083838972,-500.0,0.00029998,2]
[393899904,1763083838982,-500.0,0.00029998,2]
[393899905,1763083838992,-500.0,0.00029998,2]
[393899906,1763083839001,-500.0,0.00029998,2]
[393899907,1763083839011,-500.0,0.00029998,2]
[393899908,1763083839021,-167.91303328,0.00029998,2]
[393899909,1763083839030,-500.0,0.00029998,2]
[393899910,1763083839039,-500.0,0.00029998,2]
[393899911,1763083839049,-500.0,0.00029998,2]
[393899912,1763083839059,-500.0,0.00029998,2]
[393899913,1763083839070,-500.0,0.00029998,2]
[393899914,1763083839079,-500.0,0.00029998,2]
[393899915,1763083839093,-500.0,0.00029998,2]
[393899916,1763083839103,-500.0,0.00029998,2]
[393899917,1763083839113,-500.0,0.00029998,2]
[393899918,1763083839123,-500.0,0.00029998,2]
[393899919,1763083839133,-500.0,0.00029998,2]
[393899920,1763083839147,-500.0,0.00029998,2]
[393899921,1763083839157,-500.0,0.00029998,2]
[393899922,1763083839174,-500.0,0.00029998,2]
[393899923,1763083839193,-500.0,0.00029998,2]
[393899924,1763083839204,-500.0,0.00029998,2]
[393899925,1763083839215,-500.0,0.00029998,2]
[393899926,1763083839225,-500.0,0.00029998,2]
[393899927,1763083839237,-500.0,0.00029998,2]
[393899928,1763083839247,-500.0,0.00029998,2]
[393899929,1763083839256,-500.0,0.00029998,2]
[393899930,1763083839266,-500.0,0.00029998,2]
[393899931,1763083839276,-500.0,0.00029998,2]
[393899932,1763083839287,-500.0,0.00029998,2]
[393899933,1763083839296,-500.0,0.00029998,2]
[393899934,1763083839306,-500.0,0.00029998,2]
[393899935,1763083839316,-500.0,0.00029998,2]
[393899936,1763083839326,-500.0,0.00029998,2]
[393899937,1763083839335,-500.0,0.00029998,2]
[393899938,1763083839348,-500.0,0.00029998,2]
[393899939,1763083839357,-500.0,0.00029998,2]
[393899940,1763083839367,-500.0,0.00029998,2]
[393899941,1763083839377,-500.0,0.00029998,2]
[393899942,1763083839386,-500.0,0.00029998,2]
[393899943,1763083839396,-500.0,0.00029998,2]
[393899944,1763083839405,-500.0,0.00029998,2]
[393899945,1763083839415,-500.0,0.00029998,2]
[393899946,1763083839424,-500.0,0.00029998,2]
[393899947,1763083839433,-500.0,0.00029998,2]
[393899948,1763083839443,-218.06405324,0.00029998,2]
[393899949,1763083839452,-34.16223878,0.00029998,2]
[393899950,1763083839464,-497.2365284,0.00029998,2]
[393899951,1763083839474,-500.0,0.00029998,2]
[393899952,1763083839484,-500.0,0.00029998,2]
[393899953,1763083839494,-500.0,0.00029998,2]
[393899954,1763083839503,-500.0,0.00029998,2]
[393899955,1763083839513,-500.0,0.00029998,2]
[393899956,1763083839523,-500.0,0.00029998,2]
[393899957,1763083839532,-500.0,0.00029998,2]
[393899958,1763083839542,-500.0,0.00029998,2]
[393899959,1763083839551,-500.0,0.00029998,2]
[393899960,1763083839560,-500.0,0.00029998,2]
[393899961,1763083839570,-178.57822147,0.00029998,2]
[393899962,1763083839579,-15417.23550182,0.00029999,2]
[393899963,1763083839588,-203.41089875,0.00029999,2]
[393899964,1763083839601,-500.0,0.00029999,2]
[393899965,1763083839611,-224.45400158,0.00029999,2]
[393899966,1763083839620,-487.76595901,0.00029999,2]
[393899967,1763083839630,-157.1178011,0.00029999,2]
[393899968,1763083839639,-38869.3514018,0.0003,30]
[393899969,1763083839650,-16675.88113638,0.0003,30]
[393899970,1763083839661,-13725.12002755,0.0003,30]
[393899992,1763083840914,-790.60290983,0.0003,30]
[393899997,1763083845659,-142.88797717,0.00029998,2]
[393899998,1763083845740,-357.11202283,0.00029998,2]
[393899999,1763083845749,-500.0,0.00029998,2]
[393900000,1763083845758,-500.0,0.00029998,2]
[393900001,1763083845767,-158.2,0.00029998,2]
[393900002,1763083845776,-500.0,0.00029998,2]
[393900003,1763083845787,-64337.05620878,0.0003,30]
[393900004,1763083845797,-164.85,0.0003,7]
[393900005,1763083845809,-218.47,0.0003,14]
[393900006,1763083845818,-641.0,0.0003,2]
[393900007,1763083845827,-168.635705,0.00030216,2]
[393900008,1763083845838,-175.74093811,0.00030697,2]
[393900009,1763083845848,-353.95253169,0.00030876,2]
[393900010,1763083845858,-338.95416801,0.00031237,2]
[393900011,1763083845867,-1889.53063397,0.0003124,2]
[393900012,1763083845879,-1726.72,0.0003136,3]
[393900013,1763083845888,-1327.2,0.0003136,3]
[393900014,1763083845897,-663.6,0.0003136,3]
[393900015,1763083845906,-331.8,0.0003136,3]
[393900016,1763083845916,-1726.73,0.00031462,3]
[393900017,1763083845925,-1600.0,0.00031472,3]
[393900018,1763083845934,-641.59802703,0.000315,2]
[393900019,1763083845944,-500.0,0.000315,5]
[393900020,1763083845952,-943.85233854,0.00031516,2]
[393900021,1763083845962,-500.0,0.00031526,2]
[393900022,1763083845972,-500.00000003,0.00031526,4]
[393900023,1763083845980,-500.0,0.00031526,2]
[393900024,1763083845989,-21392.2082314,0.00031526,2]
[393900025,1763083845999,-381.26056521,0.00031573,5]
[393900026,1763083846010,-150.0,0.00031576,2]
[393900027,1763083846019,-6958.94,0.000316,7]
[393900028,1763083846028,-186.910702,0.00032025,60]
[393900029,1763083846037,-483.20577,0.00032059,2]
[393900030,1763083846047,-1067.43057369,0.00032114,2]
[393900032,1763083846056,-420.0,0.00032227,2]
[393900033,1763083846065,-175.7409381,0.00032312,30]
[393900034,1763083846074,-4582.27114424,0.000324,2]
[393900035,1763083846083,-185.221,0.00032467,32]
[393900036,1763083846092,-3453.46,0.00032832,3]
[393900037,1763083846101,-160.0,0.0003294,2]
[393900038,1763083846110,-10040.30878212,0.0003295,2]
[393900039,1763083846120,-5836.53923569,0.00033,10]
[393900040,1763083846128,-547.33088634,0.00033125,2]
[393900041,1763083846137,-176.799655,0.00033165,2]
[393900042,1763083846147,-168.59697853,0.000332,117]
[393900043,1763083846155,-353.95253169,0.00033487,2]
[393900044,1763083846164,-260.0,0.00033488,2]
[393900045,1763083846173,-218.47,0.000335,30]
[393900046,1763083846182,-280.32764722,0.0003399,2]
[393900047,1763083846191,-566.64844704,0.0003399,6]
[393900048,1763083846199,-360.0,0.00034036,2]
[393900049,1763083846208,-3633.92324098,0.00034139,2]
[393900050,1763083846217,-500.0,0.00034168,2]
[393900051,1763083846227,-150.0,0.00034208,2]
[393900052,1763083846235,-3633.92324098,0.00034396,2]
[393900053,1763083846245,-943.85233854,0.00034458,2]
[393900054,1763083846254,-37758.8636247,0.00034468,2]
[393900055,1763083846263,-943.85233854,0.00034468,2]
[393900056,1763083846273,-943.85233854,0.00034506,2]
[393900057,1763083846282,-500.0,0.00034514,2]
[393900058,1763083846291,-500.0,0.00034514,2]
[393900059,1763083846300,-500.0,0.00034514,2]
[393900060,1763083846309,-398.53531604,0.00034515,2]
[393900061,1763083846318,-31272.3467543,0.00034516,2]
[393900062,1763083846328,-330.91723878,0.00034573,5]
[393900063,1763083846337,-160.25571579,0.00034573,5]
[393900064,1763083846347,-500.0,0.00034573,5]
[393900065,1763083846356,-460.0,0.00034584,2]
[393900066,1763083846366,-6958.94,0.000346,14]
[393900067,1763083846375,-3633.92324098,0.00034658,2]
[393900068,1763083846384,-587.0,0.00034737,2]
[393900069,1763083846393,-943.85233854,0.00034841,2]
[393900070,1763083846403,-151.0,0.00034851,31]
[393900071,1763083846412,-245.308124,0.00034851,31]
[393900072,1763083846422,-151.0,0.00034851,30]
[393900073,1763083846431,-151.0,0.00034851,30]
[393900074,1763083846440,-151.0,0.00034851,31]
[393900075,1763083846450,-10926.51730662,0.00034851,2]
[393900090,1763083847139,-11016.26611802,0.00034851,2]
[393900091,1763083847158,-4726.43693686,0.00034851,2]
[393900093,1763083847171,-483.51,0.00034851,2]
[393900102,1763083855794,578.0,0.0003288,120]
[393900104,1763083879710,200.0,0.00039593,30]
[393900117,1763083943889,180.66424989,0.00025243,2]
[393900118,1763083948610,1000.0,0.00039593,30]
[393900119,1763083949077,1141.152635,0.00039593,30]
[393900163,1763084047127,414.0,0.000252,2]
[393900164,1763084048330,286.36803306,0.00039585,20]
[393900168,1763084079591,153.13889981,0.00039585,20]
[393900169,1763084115728,151.0,0.00039585,30]
[393900170,1763084116347,156.587,0.00039585,30]
[393900171,1763084117016,162.380719,0.00039585,30]
[393900172,1763084117679,168.3888056,0.00039585,30]
[393900173,1763084118325,174.61919141,0.00039585,30]
[393900174,1763084118925,181.08010149,0.00039585,30]
[393900175,1763084119554,187.78006525,0.00039585,30]
[393900176,1763084120168,194.72792766,0.00039585,30]
[393900177,1763084120790,201.93286099,0.00039585,30]
[393900178,1763084121397,209.40437684,0.00039585,30]
[393900179,1763084122016,217.15233878,0.00039585,30]
[393900180,1763084122688,225.18697532,0.00039585,30]
[393900181,1763084123274,233.51889341,0.00039585,30]
[393900182,1763084123916,242.15909246,0.00039585,30]
[393900183,1763084124752,251.11897888,0.00039585,30]
[393900184,1763084125231,260.4103811,0.00039585,30]
[393900185,1763084125843,270.0455652,0.00039585,30]
[393900186,1763084126460,280.03725112,0.00039585,30]
[393900187,1763084127118,290.39862941,0.00039585,30]
[393900188,1763084127752,290.39862941,0.00039585,30]
[393900189,1763084130273,-400.28388004,0.00027589,2]
[393900191,1763084143357,151.47954562,0.00029999,120]
[393900192,1763084154593,402.40468495,0.00039585,20]
[393900193,1763084160207,-150.0,0.0002589,2]
[393900195,1763084180899,200.0,0.00039585,30]
[393900197,1763084201698,5852.0,0.00039585,20]
[393900198,1763084205190,-180.82030834,0.0002789,2]
[393900199,1763084207885,-80.09815887,0.0002789,2]
[393900200,1763084287203,1901.0,0.00039588,120]
[393900201,1763084336864,152.78068047,0.00039588,60]
[393900203,1763084401658,985.76,0.00039588,30]
[393900206,1763084412437,151.0,0.00039588,120]
[393900207,1763084413143,156.587,0.00039588,120]
[393900208,1763084413796,162.380719,0.00039588,120]
[393900209,1763084414448,168.3888056,0.00039588,120]
[393900210,1763084415065,174.61919141,0.00039588,120]
[393900211,1763084415830,181.08010149,0.00039588,120]
[393900212,1763084416431,187.78006525,0.00039588,120]
[393900214,1763084417050,194.72792766,0.00039588,120]
[393900215,1763084417658,201.93286099,0.00039588,120]
[393900216,1763084418295,209.40437684,0.00039588,120]
[393900217,1763084418922,217.15233878,0.00039588,120]
[393900218,1763084419583,225.18697532,0.00039588,120]
[393900219,1763084420188,233.51889341,0.00039588,120]
[393900220,1763084420942,242.15909246,0.00039588,120]
[393900221,1763084421504,251.11897888,0.00039588,120]
[393900222,1763084422124,260.4103811,0.00039588,120]
[393900223,1763084422796,270.0455652,0.00039588,120]
[393900224,1763084423391,280.03725112,0.00039588,120]
[393900225,1763084424145,290.39862941,0.00039588,120]
[393900226,1763084424955,290.39862941,0.00039588,120]
[393900227,1763084444791,359.59865827,0.00039588,30]
[393900239,1763084480865,200.0,0.00039588,30]
[393900253,1763084548934,150.0,0.00039588,30]
[393900254,1763084596779,-293.65448368,0.00025243,2]
[393900255,1763084714775,151.0,0.00039588,120]
[393900256,1763084715199,-169.95691149,0.00025243,2]
[393900257,1763084715429,156.587,0.00039588,120]
[393900258,1763084716102,162.380719,0.00039588,120]
[393900259,1763084716720,168.3888056,0.00039588,120]
[393900260,1763084717424,174.61919141,0.00039588,120]
[393900261,1763084718231,181.08010149,0.00039588,120]
[393900262,1763084718835,187.78006525,0.00039588,120]
[393900264,1763084719928,194.72792766,0.00039588,120]
[393900265,1763084720611,201.93286099,0.00039588,120]
[393900266,1763084721257,209.40437684,0.00039588,120]
[393900267,1763084721892,217.15233878,0.00039588,120]
[393900268,1763084722565,225.18697532,0.00039588,120]
[393900269,1763084723165,233.51889341,0.00039588,120]
[393900270,1763084723773,242.15909246,0.00039588,120]
[393900271,1763084724368,251.11897888,0.00039588,120]
[393900272,1763084724968,260.4103811,0.00039588,120]
[393900273,1763084725583,270.0455652,0.00039588,120]
[393900274,1763084726193,280.03725112,0.00039588,120]
[393900275,1763084726813,290.39862941,0.00039588,120]
[393900276,1763084727657,290.39862941,0.00039588,120]
[393900277,1763084731123,357.30473771,0.00039588,120]
[393900280,1763084780548,200.0,0.00039588,30]
[393900282,1763084871341,299.4881551,0.00039588,120]
[393900291,1763084957183,10000.0,0.0003288,120]
[393900293,1763085013396,151.0,0.00039593,120]
[393900294,1763085014014,156.587,0.00039593,120]
[393900295,1763085014699,162.380719,0.00039593,120]
[393900296,1763085015340,168.3888056,0.00039593,120]
[393900297,1763085016011,174.61919141,0.00039593,120]
[393900298,1763085016634,181.08010149,0.00039593,120]
[393900299,1763085017282,187.78006525,0.00039593,120]
[393900300,1763085017896,194.72792766,0.00039593,120]
[393900301,1763085018593,201.93286099,0.00039593,120]
[393900302,1763085019474,209.40437684,0.00039593,120]
[393900304,1763085020073,217.15233878,0.00039593,120]
[393900305,1763085021149,225.18697532,0.00039593,120]
[393900306,1763085021919,265.409,0.0003288,120]
[393900307,1763085021950,233.51889341,0.00039593,120]
[393900308,1763085022586,242.15909246,0.00039593,120]
[393900309,1763085023204,251.11897888,0.00039593,120]
[393900310,1763085023825,260.4103811,0.00039593,120]
[393900311,1763085024452,270.0455652,0.00039593,120]
[393900312,1763085025107,280.03725112,0.00039593,120]
[393900313,1763085025736,290.39862941,0.00039593,120]
[393900314,1763085026382,290.39862941,0.00039593,120]
[393900344,1763085031818,-150.0,0.00028819,2]
[393900345,1763085031827,-151.96260396,0.0003,14]
[393900346,1763085031837,-186.6439497,0.00030697,2]
[393900347,1763085031846,-320.17203433,0.00030876,2]
[393900348,1763085031857,-236.18738376,0.00030876,2]
[393900351,1763085031944,-681.53402825,0.00030914,2]
[393900352,1763085031955,-2965.89517888,0.00030914,2]
[393900353,1763085031965,-3647.42920713,0.00031054,2]
[393900354,1763085031974,-400.0,0.00031124,2]
[393900355,1763085031983,-1600.0,0.00031125,3]
[393900356,1763085031992,-293.65448368,0.00031237,2]
[393900357,1763085032001,-620.97759938,0.00031379,2]
[393900358,1763085032010,-3647.42920713,0.00031425,2]
[393900359,1763085032018,-150.0,0.0003146,2]
[393900360,1763085032028,-500.0,0.00031526,4]
[393900361,1763085032037,-159.23,0.00031588,2]
[393900362,1763085032046,-3647.42920713,0.00031606,2]
[393900363,1763085032055,-160.0,0.00031711,2]
[393900364,1763085032064,-3647.42920713,0.00031835,2]
[393900365,1763085032073,-253.70809523,0.00032033,5]
[393900366,1763085032082,-509.71530261,0.00032073,5]
[393900367,1763085032091,-1067.43057369,0.00032114,2]
[393900368,1763085032101,-3647.42920713,0.00032165,2]
[393900369,1763085032110,-155.95308463,0.00032212,2]
[393900370,1763085032119,-260.0,0.00032259,2]
[393900371,1763085032129,-186.64394969,0.00032312,30]
[393900372,1763085032139,-3302.47075171,0.0003256,2]
[393900373,1763085032149,-2740.84333347,0.00032596,2]
[393900393,1763085037730,-906.58587366,0.00032596,2]
[393900395,1763085037740,-3647.42920713,0.00032621,2]
[393900397,1763085037749,-360.0,0.00032807,2]
[393900399,1763085037759,-576.11359035,0.0003289,4]
[393900401,1763085037768,-3647.42920713,0.000329,2]
[393900403,1763085037778,-320.17203433,0.00033177,2]
[393900405,1763085037789,-177.28141973,0.000332,117]
[393900407,1763085037798,-1026.4587668,0.00033352,2]
[393900412,1763085037835,-2177.85088,0.00033352,2]
[393900415,1763085037847,-443.11956033,0.00033352,2]
[393900418,1763085037856,-500.0,0.00033354,7]
[393900420,1763085037865,-500.0,0.00033354,7]
[393900422,1763085037875,-500.0,0.00033354,7]
[393900424,1763085037884,-500.0,0.00033354,7]
[393900426,1763085037893,-556.85155939,0.00033354,7]
[393900428,1763085037903,-500.0,0.00033354,7]
[393900430,1763085037913,-500.0,0.00033354,7]
[393900432,1763085037922,-500.0,0.00033354,7]
[393900434,1763085037932,-500.0,0.00033354,7]
[393900436,1763085037942,-500.0,0.00033354,7]
[393900439,1763085037952,-500.0,0.00033354,7]
[393900441,1763085037961,-500.0,0.00033354,7]
[393900443,1763085037971,-500.0,0.00033354,7]
[393900445,1763085037981,-500.0,0.00033354,7]
[393900447,1763085037991,-500.0,0.00033354,7]
[393900449,1763085038001,-154.82506016,0.00033354,7]
[393900451,1763085038011,-500.0,0.00033354,7]
[393900453,1763085038021,-500.0,0.00033354,7]
[393900455,1763085038032,-500.0,0.00033354,7]
[393900457,1763085038042,-500.0,0.00033354,7]
[393900459,1763085038051,-500.0,0.00033354,7]
[393900461,1763085038060,-500.0,0.00033354,7]
[393900462,1763085038070,-296.43478148,0.00033354,7]
[393900464,1763085038080,-517.61047505,0.00033354,7]
[393900466,1763085038093,-500.0,0.00033354,7]
[393900468,1763085038102,-500.0,0.00033354,7]
[393900471,1763085038112,-500.0,0.00033354,7]
[393900472,1763085038121,-500.0,0.00033354,7]
[393900474,1763085038131,-500.0,0.00033354,7]
[393900476,1763085038140,-474.50225534,0.00033354,7]
[393900478,1763085038150,-500.0,0.00033354,7]
[393900480,1763085038162,-500.0,0.00033354,7]
[393900482,1763085038172,-222.11804358,0.00033354,7]
[393900484,1763085038181,-500.0,0.00033354,7]
[393900486,1763085038190,-500.0,0.00033354,7]
[393900488,1763085038203,-500.0,0.00033354,7]
[393900490,1763085038213,-500.0,0.00033354,7]
[393900492,1763085038223,-500.0,0.00033354,7]
[393900494,1763085038233,-500.0,0.00033354,7]
[393900496,1763085038245,-500.0,0.00033354,7]
[393900498,1763085038255,-500.0,0.00033354,7]
[393900500,1763085038264,-500.0,0.00033354,7]
[393900502,1763085038274,-500.0,0.00033354,7]
[393900504,1763085038285,-500.0,0.00033354,7]
[393900506,1763085038295,-500.0,0.00033354,7]
[393900508,1763085038306,-500.0,0.00033354,7]
[393900510,1763085038316,-500.0,0.00033354,7]
[393900512,1763085038326,-500.0,0.00033354,7]
[393900514,1763085038336,-500.0,0.00033354,7]
[393900516,1763085038346,-500.0,0.00033354,7]
[393900518,1763085038356,-500.0,0.00033354,7]
[393900521,1763085038366,-500.0,0.00033354,7]
[393900523,1763085038376,-500.0,0.00033354,7]
[393900525,1763085038385,-172.42235398,0.00033354,7]
[393900584,1763085040035,-150.0,0.00028858,2]
[393900585,1763085040044,-327.57764602,0.00033354,7]
[393900586,1763085040054,-500.0,0.00033354,7]
[393900587,1763085040063,-500.0,0.00033354,7]
[393900588,1763085040073,-500.0,0.00033354,7]
[393900589,1763085040082,-500.0,0.00033354,7]
[393900590,1763085040092,-500.0,0.00033354,7]
[393900591,1763085040102,-500.0,0.00033354,7]
[393900592,1763085040111,-500.0,0.00033354,7]
[393900593,1763085040121,-500.0,0.00033354,7]
[393900594,1763085040130,-500.0,0.00033354,7]
[393900595,1763085040140,-500.0,0.00033354,7]
[393900596,1763085040151,-500.0,0.00033354,7]
[393900597,1763085040163,-500.0,0.00033354,7]
[393900598,1763085040172,-500.0,0.00033354,7]
[393900599,1763085040181,-500.0,0.00033354,7]
[393900600,1763085040190,-500.0,0.00033354,7]
[393900601,1763085040201,-500.0,0.00033354,7]
[393900602,1763085040210,-500.0,0.00033354,7]
[393900603,1763085040219,-500.0,0.00033354,7]
[393900604,1763085040228,-500.0,0.00033354,7]
[393900605,1763085040239,-500.0,0.00033354,7]
[393900606,1763085040248,-256.99396544,0.00033354,7]
[393900607,1763085040258,-500.0,0.00033354,7]
[393900608,1763085040267,-500.0,0.00033354,7]
[393900609,1763085040276,-500.0,0.00033354,7]
[393900610,1763085040286,-500.0,0.00033354,7]
[393900611,1763085040295,-460.0,0.00033355,2]
[393900612,1763085040305,-919.87512543,0.0003344,2]
[393900613,1763085040314,-3647.42920713,0.00033501,2]
[393900614,1763085040323,-560.0,0.00033506,2]
[393900615,1763085040332,-39.9256336,0.00033507,3]
[393900623,1763085043032,-150.0,0.00031481,2]
[393900624,1763085043050,-1171.0743664,0.00033507,3]
[393900625,1763085043065,-158.38189584,0.0003351,2]
[393900626,1763085043083,-157.19454872,0.00033673,5]
[393900627,1763085043099,-381.44046209,0.00033673,5]
[393900628,1763085043116,-493.63932333,0.00033673,5]
[393900629,1763085043132,-1060.75,0.00033684,10]
[393900630,1763085043149,-560.0,0.00033903,2]
[393900631,1763085043168,-3647.42920713,0.00033907,2]
[393900632,1763085043186,-930.77794856,0.00033934,2]
[393900633,1763085043202,-3647.42920713,0.00033974,2]
[393900634,1763085043214,-499.47623117,0.0003399,2]
[393900635,1763085043225,-404.80680953,0.0003399,6]
[393900636,1763085043243,-2266.59378815,0.0003399,6]
[393900637,1763085043257,-380.45854657,0.0003399,6]
[393900639,1763085043268,-495.64697179,0.0003399,6]
[393900641,1763085043283,-308.36234847,0.0003399,6]
[393900644,1763085043299,-150.0,0.00034082,2]
[393900646,1763085043311,-158.38189582,0.00034135,2]
[393900648,1763085043324,-500.0,0.00034142,7]
[393900651,1763085043336,-219.83004398,0.00034142,7]